Cogmind - Beta 12 @@@ ROGUE MODE // 2023.03.06 @ 02:14:18 Player: Shin Result: Destroyed by P-70 Sage with Tesla Rifle Performance ------------- Evolutions (5) 2500 Regions Visited (13) 2600 Robots Destroyed (155) 775 Value Destroyed (6248) 6248 Prototype IDs (28) 560 Alien Tech Used (0) 0 Bonus (1466) 1466 TOTAL SCORE: 14149 Bonus ------- High Alert Combat Kills 326 Follower Combat Kills 140 Entered Garrisons 200 Used RIF Installer 500 Aligned with FarCom 300 Cogmind --------- Core Integrity 0/1000 Matter 295/300 Energy 88/100 System Corruption 11% Temperature Cool (55) Movement Core (1450) Ox28 Location -5/Factory Parts ------- > --- POWER (2) -------- (None) > --- PROPULSION (6) --- (None) > --- UTILITY (7) ------ Huge Storage Unit Improved Trap Scanner Improved Target Analyzer Armor Integrity Analyzer Weapon Cycler > --- WEAPON (2) ------- Lance > --- INVENTORY (25) --- Medium Storage Unit High-capacity Matter Pod (200) Advanced Sensor Array Improved Target Analyzer Makeshift ECM Suite Phase Shifter Improved Thermal Shield Hardlight Generator Improved System Restoration Module Bomb Factory No. 2 Remote Datajack Peak State ------------ > --- POWER ------------ Angular Momentum Engine Fission Core > --- PROPULSION ------- Armored Treads Armored Treads Armored Treads Improved Medium Treads Armored Huge Wheel > --- UTILITY ---------- Advanced Heat Sink Huge Storage Unit Improved Trap Scanner Machine Analyzer Improved Targeting Computer Armor Integrity Analyzer Improved Thermal Shield > --- WEAPON ----------- Heavy Ion Cannon Heavy Ion Cannon > --- INVENTORY -------- Improved Treads Improved Thermal Generator Improved Heat Sink Superbattery High-capacity Matter Pod Advanced Sensor Array Improved Target Analyzer Weapon Cycler Weapon Cycler Makeshift ECM Suite Improved Medium Armor Plating Focal Shield Improved Thermal Shield Hardlight Generator Improved System Restoration Module Bomb Factory No. 2 Plasma Cannon Heavy Ion Cannon Heavy Ion Cannon Heavy Plasma Cannon Rocket Launcher Long-range Missile Launcher Remote Datajack Lance [Rating: 77] Favorites ----------- Power Fission Core Engine Light Ion Engine Power Core Fission Core Propulsion Armored Treads Treads Armored Treads Leg Aluminum Leg Wheel Wheel Utility Huge Storage Unit Device Improved Heat Sink Storage Huge Storage Unit Processor Targeting Computer Hackware Relay Coupler [Grunt] Protection Improved Utility Shielding Weapon Heavy Ion Cannon Energy Cannon Heavy Ion Cannon Ballistic Gun Assault Rifle Launcher Rocket Launcher Slashing Weapon Scythe Piercing Weapon Lance Special Melee Weapon Improved Datajack Build | -11 -10 -10 -10 -9 -8 -8 -7 -6 -6 -6 -6 -5 -5 ------- Run | Jun Mat Min Exi Min Mat Gar Fac Fac Low Low Zio Pro Fac Slots Evolved 10 | . . . . . 4 . 2 2 . . . . 2 Power 1 | . . . . . . . . 1 . . . . . Propulsion 4 | . . . . . 2 . . . . . . . 2 Utility 5 | . . . . . 2 . 2 1 . . . . . Weapon . | . . . . . . . . . . . . . . Parts Attached 140 | . 5 . . . 23 26 34 10 3 6 3 . 30 Power 14 | . . . . . 3 2 2 3 . 1 . . 3 Engine 9 | . . . . . 2 1 2 1 . 1 . . 2 Core 5 | . . . . . 1 1 . 2 . . . . 1 Reactor . | . . . . . . . . . . . . . . Propulsion 36 | . 2 . . . 10 5 9 2 . 1 . . 7 Treads 26 | . 1 . . . 10 5 5 2 . 1 . . 2 Leg . | . . . . . . . . . . . . . . Wheel 10 | . 1 . . . . . 4 . . . . . 5 Hover . | . . . . . . . . . . . . . . Flight . | . . . . . . . . . . . . . . Utility 48 | . 2 . . . 5 4 14 5 3 . 3 . 12 Device 30 | . . . . . 1 2 10 3 1 . 3 . 10 Storage 2 | . 1 . . . . . 1 . . . . . . Processor 7 | . 1 . . . 2 . 2 1 . . . . 1 Hackware 1 | . . . . . . . 1 . . . . . . Protection 8 | . . . . . 2 2 . 1 2 . . . 1 Artifact . | . . . . . . . . . . . . . . Weapon 42 | . 1 . . . 5 15 9 . . 4 . . 8 Energy Gun . | . . . . . . . . . . . . . . Energy Cannon 20 | . . . . . 1 7 5 . . 2 . . 5 Ballistic Gun 6 | . 1 . . . 3 2 . . . . . . . Ballistic Cannon . | . . . . . . . . . . . . . . Launcher 11 | . . . . . . 5 2 . . 2 . . 2 Special Weapon . | . . . . . . . . . . . . . . Impact Weapon . | . . . . . . . . . . . . . . Slashing Weapon 1 | . . . . . . 1 . . . . . . . Piercing Weapon 1 | . . . . . . . . . . . . . 1 Special Melee Weapon 3 | . . . . . 1 . 2 . . . . . . Unidentified Prototypes 1 | . . . . . . . . . . . 1 . . Parts Lost 50 | . . . . . 7 4 5 . 2 1 . . 31 Power 6 | . . . . . 1 . 1 . . . . . 4 Propulsion 18 | . . . . . 3 2 2 . . 1 . . 10 Utility 16 | . . . . . 2 1 2 . 2 . . . 9 Weapon 10 | . . . . . 1 1 . . . . . . 8 Highest Loss Streak 18 | . . . . . 5 2 2 . 2 1 . . 18 To Critical Strikes . | . . . . . . . . . . . . . . Average Slot Usage (%) 94 | . 96 100 79 71 97 96 93 98 100 99 99 100 87 Engine 6 | . 14 14 14 14 6 3 5 7 . 1 6 6 4 Core 3 | . . . . . 2 5 . 4 13 10 6 6 4 Treads 22 | . 7 14 14 14 32 33 18 25 26 25 26 26 18 Leg 1 | . 13 . . . . . . . . . . . . Wheel 4 | . 7 14 14 14 1 . 6 . . . . . 5 Device 12 | . . . . . 1 9 21 17 19 13 16 20 17 Storage 8 | . 14 14 14 14 9 9 7 6 6 6 6 6 5 Processor 14 | . 10 14 14 14 16 9 12 20 20 20 20 20 15 Protection 2 | . . . . . 8 8 2 1 . 6 2 . . Energy Cannon 9 | . . . . . 4 12 14 13 13 12 13 13 10 Ballistic Gun 5 | . 28 28 8 . 13 3 . . . . . . . Naked Turns . | . . . . . . . . . . . . . . Heaviest Build 147 | 11 87 87 87 83 102 106 109 121 123 125 147 121 125 Greatest Support 90 | 20 20 10 10 10 80 80 80 80 80 80 80 80 90 Greatest Overweight (x) 36 | . 8 8 8 8 9 2 10 1 1 1 1 1 36 Average Overweight (x) 3 | . 3 8 8 8 3 1 4 1 1 1 1 1 3 Largest Inventory Capacity 25 | 8 25 25 25 25 25 25 25 25 25 25 25 25 25 Average Capacity 24 | 8 17 25 25 25 25 25 25 25 25 25 25 25 25 Most Carried 25 | 6 23 25 25 25 25 25 25 25 25 24 25 24 25 Average Carried 23 | 6 12 23 24 25 24 24 24 24 24 22 23 24 22 Final Capacity 25 | 8 25 25 25 25 25 25 25 25 25 25 25 25 25 Final Carried 25 | 6 23 25 25 25 23 25 24 25 23 24 24 24 12 Class Distribution -------------------- 47% | Mutant 27% | Skirmisher 22% | Scavenger-Mutant Dominant Class ---------------- Mutant | -10/Materials Mutant | -10/Mines Mutant | -10/Exiles Mutant | -9/Mines Mutant | -8/Materials Scavenger-Mutant | -8/Garrison Skirmisher | -7/Factory Skirmisher | -6/Factory Mutant | -6/Lower Caves Mutant | -6/Lower Caves Mutant | -6/Zion Mutant | -5/Proximity Caves Skirmisher | -5/Factory Resources | -11 -10 -10 -10 -9 -8 -8 -7 -6 -6 -6 -6 -5 -5 ----------- Run | Jun Mat Min Exi Min Mat Gar Fac Fac Low Low Zio Pro Fac Matter Collected 3242 | 200 472 56 . 26 672 591 487 145 79 165 . . 349 Remotely . | . . . . . . . . . . . . . . Salvage Created 6005 | . 406 . . . 1251 801 1067 626 184 147 . 18 1505 Parts 317 | . 34 . . . 64 44 55 29 5 9 . 1 76 Haulers Intercepted 8 | . 1 . . . 5 . 2 . . . . . . Recyclers Shooed 7 | . 1 . . . . . 2 . . . . . 4 Parts Field Recycled . | . . . . . . . . . . . . . . Retrieved Matter . | . . . . . . . . . . . . . . Parts Self-Destructed 12 | . . . . . . . . . 6 5 . 1 . Prevented . | . . . . . . . . . . . . . . Kills | -11 -10 -10 -10 -9 -8 -8 -7 -6 -6 -6 -6 -5 -5 ------- Run | Jun Mat Min Exi Min Mat Gar Fac Fac Low Low Zio Pro Fac Combat Hostiles Destroyed 116 | . 10 . . . 18 25 19 11 3 7 . 2 21 Guns 25 | . 10 . . . 13 2 . . . . . . . Cannons 57 | . . . . . 5 10 13 10 3 2 . 2 12 AOE 30 | . . . . . . 13 5 . . 5 . . 7 Classes Destroyed 14 | . 6 . . . 5 . 1 . . . . 1 1 Worker 5 | . 1 . . . . . . . . . . . 4 Builder 5 | . . . . . 2 . . . . . . . 3 Hauler 8 | . 1 . . . 5 . 2 . . . . . . Recycler 8 | . 1 . . . . . 2 . . . . . 5 Drone 2 | . . . . . . . . . . . . 2 . Watcher 13 | . 3 . . . 2 . 4 1 . . . . 3 Swarmer 24 | . 8 . . . . 5 3 . . 4 . . 4 Grunt 55 | . 2 . . . 13 13 10 6 3 3 . . 5 Brawler 2 | . . . . . 1 1 . . . . . . . Duelist 2 | . . . . . 1 . . . . . . . 1 Sentry 9 | . . . . . 2 6 . . . . . . 1 Specialist 3 | . . . . . . . . . . . . . 3 Hunter 4 | . . . . . 1 . . 2 . . . . 1 Programmer 15 | . . . . . . . 6 3 . . . . 6 Best Kill Streak 19 | . 5 . . . 7 10 6 3 2 7 . 2 19 Combat Bots Only 10 | . 3 . . . 6 10 6 3 2 7 . 2 9 Max Kills in Single Turn 5 | . 2 . . . 2 2 1 1 1 3 . 1 5 Gunslinging 1 | . 1 . . . . . . . . . . . . Exploded 3 | . . . . . . 2 1 . . 3 . . 3 Melee . | . . . . . . . . . . . . . . Uniques/NPCs Destroyed . | . . . . . . . . . . . . . . Combat | -11 -10 -10 -10 -9 -8 -8 -7 -6 -6 -6 -6 -5 -5 -------- Run | Jun Mat Min Exi Min Mat Gar Fac Fac Low Low Zio Pro Fac Damage Taken 10327 | . 280 . . . 1579 965 1643 704 446 308 . . 4402 Core 1590 | . 29 . . . 142 119 179 76 20 12 . . 1013 Absorbed by Shields . | . . . . . . . . . . . . . . Redirected to Shielding 102 | . . . . . . 31 71 . . . . . . Regen/Repaired (Parts) 410 | . 27 . . . . . . 383 . . . . . Core Remaining (%) 80 | 100 . . . 88 . 52 74 . . . . 87 . Volleys Fired 492 | . 35 . . . 94 65 128 47 14 13 . 3 93 Largest 2 | . 2 . . . 2 2 2 2 2 2 . 2 2 Hottest 155 | . 40 . . . 98 150 130 130 130 130 . 130 155 Shots Fired 915 | . 69 . . . 177 109 238 95 28 20 . 6 173 Gun 250 | . 69 . . . 144 37 . . . . . . . Cannon 623 | . . . . . 33 53 228 95 28 14 . 6 166 Launcher 42 | . . . . . . 19 10 . . 6 . . 7 Special . | . . . . . . . . . . . . . . Kinetic 250 | . 69 . . . 144 37 . . . . . . . Thermal 623 | . . . . . 33 53 228 95 28 14 . 6 166 Explosive 42 | . . . . . . 19 10 . . 6 . . 7 Electromagnetic . | . . . . . . . . . . . . . . Robot Hit Streak 23 | . 8 . . . 23 9 11 11 10 5 . 2 16 Robot Miss Streak 9 | . 9 . . . 3 3 7 3 2 3 . 2 4 Penetration Max . | . . . . . . . . . . . . . . Secondary Targets 5 | . 3 . . . 2 . . . . . . . . Max Gunslinging Chain 1 | . 1 . . . 1 . . . . . . . . Shots Hit Robots 446 | . 37 . . . 128 59 69 49 20 9 . 3 72 Core Hits 243 | . 19 . . . 45 41 41 21 8 10 . 2 56 Critical Kills 6 | . 1 . . . 2 . 1 1 . . . . 1 Critical Parts Destroyed . | . . . . . . . . . . . . . . Critical Strikes 6 | . 1 . . . 2 . 1 1 . . . . 1 Meltdown 5 | . . . . . 2 . 1 1 . . . . 1 Destroy 1 | . 1 . . . . . . . . . . . . Melee Attacks 10 | . . . . . . 3 6 . . . . . 1 Impact . | . . . . . . . . . . . . . . Slashing 3 | . . . . . . 3 . . . . . . . Piercing 1 | . . . . . . . . . . . . . 1 Sneak Attacks . | . . . . . . . . . . . . . . Combat Hostiles . | . . . . . . . . . . . . . . Follow-up Attacks . | . . . . . . . . . . . . . . Damage Inflicted 15087 | . 492 . . . 2219 2577 2839 1388 531 854 . 82 4105 Guns 2289 | . 492 . . . 1517 280 . . . . . . . Cannons 7774 | . . . . . 700 783 1914 1388 531 187 . 82 2189 Explosions 5022 | . . . . . . 1514 925 . . 667 . . 1916 Melee . | . . . . . . . . . . . . . . Ramming 2 | . . . . . 2 . . . . . . . . Kinetic 2289 | . 492 . . . 1517 280 . . . . . . . Thermal 8504 | . . . . . 700 783 2002 1388 531 187 . 82 2831 Explosive 4225 | . . . . . . 1514 795 . . 667 . . 1249 Electromagnetic 67 | . . . . . . . 42 . . . . . 25 Impact . | . . . . . . . . . . . . . . Slashing . | . . . . . . . . . . . . . . Piercing . | . . . . . . . . . . . . . . Highest Corruption 11 | . 3 3 3 3 2 2 6 2 2 2 2 2 11 Average Corruption 2 | . 2 3 3 3 2 2 2 2 2 2 2 2 5 Corruption Purged 2 | . . . . . . . . . . . . . 2 Corruption Blocked . | . . . . . . . . . . . . . . Effects 208 | . 27 10 15 8 7 25 56 12 11 10 5 7 15 Message Errors 45 | . 12 2 4 5 . 4 10 1 4 . . 1 2 Matter Fused 50 | . 6 3 3 3 4 5 12 4 2 3 1 1 3 Heat Flow Errors 25 | . 2 2 3 . . 4 8 3 2 . . 1 . Energy Discharges 21 | . 2 . 1 . . 1 4 . 1 6 2 1 3 Parts Rejected 3 | . . . . . . 1 1 . . . . . 1 Parts Fused 1 | . . . . . . . 1 . . . . . . Data Loss (minor) 27 | . 4 3 2 . 2 4 5 2 1 1 . . 3 Data Loss (major) 7 | . . . . . . 1 3 1 . . . 2 . Misfires 13 | . . . . . . 5 6 1 . . . . 1 Alerts 11 | . . . 2 . . . 4 . 1 . 2 1 1 Weapon Failures 5 | . 1 . . . 1 . 2 . . . . . 1 Overload Shots . | . . . . . . . . . . . . . . Overflow Damage 503 | . . . . . 6 71 129 4 19 1 . . 273 Projectiles 204 | . . . . . 6 11 91 4 19 1 . . 72 Explosions 299 | . . . . . . 60 38 . . . . . 201 Melee . | . . . . . . . . . . . . . . Knockbacks . | . . . . . . . . . . . . . . Impact . | . . . . . . . . . . . . . . Kinetic . | . . . . . . . . . . . . . . Secondary . | . . . . . . . . . . . . . . Self-Inflicted Damage 332 | . . . . . . 94 60 . . 12 . . 166 Shots 12 | . . . . . . 4 2 . . 1 . . 5 Rammed 1 | . . . . . 1 . . . . . . . . Targets Rammed 1 | . . . . . 1 . . . . . . . . Kicked . | . . . . . . . . . . . . . . Crushed . | . . . . . . . . . . . . . . Highest Temperature 371 | . 210 167 259 . 279 248 238 218 229 221 . 249 371 Average Temperature 67 | . 93 90 112 . 86 56 42 48 82 82 . 89 92 Received Heat Transfer 2478 | . 42 . . . 774 378 324 189 240 93 . . 438 Effects 1 | . . . . . . . 1 . . . . . . Energy Bleed 1 | . . . . . . . 1 . . . . . . Siege Activations . | . . . . . . . . . . . . . . Robots Corrupted . | . . . . . . . . . . . . . . Combat Hostiles . | . . . . . . . . . . . . . . Parts Fried . | . . . . . . . . . . . . . . Impact Corruptions . | . . . . . . . . . . . . . . Robots Melted 6 | . . . . . 2 . 1 1 . . . . 2 Combat Hostiles 4 | . . . . . . . 1 1 . . . . 2 Parts Melted 25 | . . . . . 3 2 7 5 . . . . 8 Heat Transferred 11033 | . . . . . 1036 1147 2542 1850 740 259 . 111 3348 Parts Sabotaged . | . . . . . . . . . . . . . . Parts Stolen . | . . . . . . . . . . . . . . Parts Stripped . | . . . . . . . . . . . . . . Power Chain Reactions 1 | . . . . . . . 1 . . . . . . Missiles Intercepted . | . . . . . . . . . . . . . . Alert | -11 -10 -10 -10 -9 -8 -8 -7 -6 -6 -6 -6 -5 -5 ------- Run | Jun Mat Min Exi Min Mat Gar Fac Fac Low Low Zio Pro Fac Peak Influence 1121 | . 197 . . . 244 1121 607 318 . . . . 720 Initial 588 | . . . . . . 137 588 280 . . . . 156 Average 238 | . 28 . . . 111 646 332 226 . . . . 149 Maximum Alert Level 4 | . . . . . 1 4 2 1 . . . . 3 Low Security (%) 53 | 100 100 100 . 100 89 10 5 37 . . . . 80 Level 1 27 | . . . . . 10 9 70 62 . . . . 2 Level 2 14 | . . . . . . 41 24 . . . . . 13 Level 3 5 | . . . . . . 34 . . . . . . 3 Level 4 . | . . . . . . 3 . . . . . . . Level 5 . | . . . . . . . . . . . . . . High Security . | . . . . . . . . . . . . . . Max Security . | . . . . . . . . . . . . . . Squads Dispatched 22 | . 1 . . . 4 . 9 4 . . . . 4 Investigation 6 | . . . . . 2 . 4 . . . . . . Extermination 11 | . . . . . . . 5 3 . . . . 3 Reinforcement 4 | . 1 . . . 1 . . 1 . . . . 1 Assault . | . . . . . . . . . . . . . . Garrison 1 | . . . . . 1 . . . . . . . . Intercept . | . . . . . . . . . . . . . . Searches Triggered . | . . . . . . . . . . . . . . Construction Impeded . | . . . . . . . . . . . . . . Haulers Reinforced 1 | . . . . . . . . 1 . . . . . Active Scanning Responses . | . . . . . . . . . . . . . . Cargo Convoy Interrupts 1 | . . . . . . . . . . . . . 1 Stealth | -11 -10 -10 -10 -9 -8 -8 -7 -6 -6 -6 -6 -5 -5 --------- Run | Jun Mat Min Exi Min Mat Gar Fac Fac Low Low Zio Pro Fac Distress Signals 9 | . . . . . 5 . 1 1 . . . . 2 Communications Jammed . | . . . . . . . . . . . . . . Distress Signals . | . . . . . . . . . . . . . . Times Spotted 193 | . 20 . . . 38 28 35 17 6 7 . 1 41 Peak Tracking Total 10 | . 5 . . . 7 5 7 6 4 5 . 1 10 Tactical Retreats 7 | . . . . . 1 . 2 2 2 . . . . Traps | -11 -10 -10 -10 -9 -8 -8 -7 -6 -6 -6 -6 -5 -5 ------- Run | Jun Mat Min Exi Min Mat Gar Fac Fac Low Low Zio Pro Fac Traps Triggered 7 | . 2 . . . . 4 . 1 . . . . . Indirectly . | . . . . . . . . . . . . . . Trap Hack Attempts . | . . . . . . . . . . . . . . Triggered . | . . . . . . . . . . . . . . Disarmed . | . . . . . . . . . . . . . . Reprogrammed . | . . . . . . . . . . . . . . Reused 1 | . . . . . . 1 . . . . . . . Traps Extracted . | . . . . . . . . . . . . . . Installed 5 | . . . . . 2 3 . . . . . . . Triggered 3 | . . . . . . 1 . . . . . . 2 Most Traps Carried 5 | . . 5 5 2 2 1 . . . . . . . Exploded 2 | . . . . . 2 . . . . . . . . Machines | -11 -10 -10 -10 -9 -8 -8 -7 -6 -6 -6 -6 -5 -5 ---------- Run | Jun Mat Min Exi Min Mat Gar Fac Fac Low Low Zio Pro Fac Machines Disabled 33 | . . . . . 1 8 7 . . . . . 17 Max in Single Turn 9 | . . . . . 1 2 4 . . . . . 9 Garrison Access 4 | . . . . . . . 2 . . . . . 2 Garrison Relay 2 | . . . . . . 2 . . . . . . . Machines Repaired . | . . . . . . . . . . . . . . Machines Sabotaged . | . . . . . . . . . . . . . . Overloaded Fab Kills . | . . . . . . . . . . . . . . Hacking | -11 -10 -10 -10 -9 -8 -8 -7 -6 -6 -6 -6 -5 -5 --------- Run | Jun Mat Min Exi Min Mat Gar Fac Fac Low Low Zio Pro Fac Machines Accessed 47 | . 4 . 2 . 7 1 19 3 . . . . 11 Terminals 25 | . 2 . . . 5 1 11 2 . . . . 4 Fabricators 4 | . . . . . . . 2 . . . . . 2 Repair Stations 2 | . 1 . . . . . . 1 . . . . . Recycling Units 7 | . 1 . . . 1 . 3 . . . . . 2 Scanalyzers 2 | . . . . . . . 1 . . . . . 1 Garrison Access 5 | . . . . . 1 . 2 . . . . . 2 Total Hacks 136 | . 8 . 7 . 30 3 52 9 . . . . 27 Successful 73 | . 5 . 7 . 15 . 25 7 . . . . 14 Failed 63 | . 3 . . . 15 3 27 2 . . . . 13 Catastrophic 22 | . 2 . . . 4 2 7 1 . . . . 6 Database Lockouts . | . . . . . . . . . . . . . . Manual 56 | . 6 . 1 . 14 . 25 3 . . . . 7 Terminals 66 | . 4 . . . 20 3 28 5 . . . . 6 Fabricators 11 | . . . . . . . 4 . . . . . 7 Repair Stations 6 | . 2 . . . . . . 4 . . . . . Recycling Units 28 | . 2 . . . 9 . 10 . . . . . 7 Scanalyzers 9 | . . . . . . . 6 . . . . . 3 Garrison Access 9 | . . . . . 1 . 4 . . . . . 4 Terminal Hacks 27 | . 1 . 7 . 7 . 8 2 . . . . 2 Record 6 | . . . 6 . . . . . . . . . . Prototype ID Bank 2 | . . . . . . . 1 1 . . . . . Open DSF 1 | . . . . . . . 1 . . . . . . Level Access Points 2 | . . . . . . . 1 . . . . . 1 Branch Access Points 1 | . . . . . 1 . . . . . . . . Terminal Index 2 | . . . . . 1 . 1 . . . . . . Alert Level 2 | . . . . . 1 . 1 . . . . . . Unreport Threat 1 | . . . . . . . 1 . . . . . . Locate Traps 1 | . . . . . 1 . . . . . . . . Transport Status 1 | . . . . . . . 1 . . . . . . Recall Investigation 1 | . . . . . . . 1 . . . . . . Recall Reinforcements 1 | . 1 . . . . . . . . . . . . Zone Layout 5 | . . . . . 3 . . 1 . . . . 1 EX-Prototype ID Bank 1 | . . . 1 . . . . . . . . . . Fabricator Hacks 4 | . . . . . . . 1 . . . . . 3 Network Status 2 | . . . . . . . 1 . . . . . 1 Load Schematic 1 | . . . . . . . . . . . . . 1 Build 1 | . . . . . . . . . . . . . 1 Repair Station Hacks 6 | . 2 . . . . . . 4 . . . . . Scan Component 3 | . 1 . . . . . . 2 . . . . . Repair 3 | . 1 . . . . . . 2 . . . . . Recycling Unit Hacks 3 | . . . . . 2 . . . . . . . 1 Report Inventory 1 | . . . . . 1 . . . . . . . . Retrieve Components 2 | . . . . . 1 . . . . . . . 1 Scanalyzer 8 | . . . . . . . 6 . . . . . 2 Insert Component 4 | . . . . . . . 3 . . . . . 1 Analyze 4 | . . . . . . . 3 . . . . . 1 Garrison Access Hacks 9 | . . . . . 1 . 4 . . . . . 4 Unlock Access 1 | . . . . . 1 . . . . . . . . Seal Access 4 | . . . . . . . 2 . . . . . 2 Coupler Status 4 | . . . . . . . 2 . . . . . 2 Unauthorized Hacks 16 | . 2 . . . 5 . 6 1 . . . . 2 Terminals 9 | . 1 . . . 3 . 3 1 . . . . 1 Botnet 9 | . 1 . . . 3 . 3 1 . . . . 1 Fabricators . | . . . . . . . . . . . . . . Repair Stations . | . . . . . . . . . . . . . . Recycling Units 7 | . 1 . . . 2 . 3 . . . . . 1 Reject 2 | . . . . . 1 . 1 . . . . . . Mask 5 | . 1 . . . 1 . 2 . . . . . 1 Scanalyzers . | . . . . . . . . . . . . . . Garrison Access . | . . . . . . . . . . . . . . Data Cores Recovered . | . . . . . . . . . . . . . . Used . | . . . . . . . . . . . . . . Hacking Detections 39 | . 2 . . . 7 1 17 3 . . . . 9 Full Trace Events 6 | . . . . . 2 . 4 . . . . . . Feedback Events 1 | . . . . . . . 1 . . . . . . Corruption 1 | . . . . . . . 1 . . . . . . Feedback Blocked . | . . . . . . . . . . . . . . Robot Schematics Acquired . | . . . . . . . . . . . . . . Robots Built . | . . . . . . . . . . . . . . Authchips . | . . . . . . . . . . . . . . Time . | . . . . . . . . . . . . . . Total Robot Build Rating . | . . . . . . . . . . . . . . Part Schematics Acquired 3 | . . . . . . . 2 . . . . . 1 Parts Built 2 | . . . . . . . . . . . . . 2 Authchips . | . . . . . . . . . . . . . . Time 106 | . . . . . . . . . . . . . 106 Total Part Build Rating 12 | . . . . . . . . . . . . . 12 Parts Repaired 3 | . 1 . . . . . . 2 . . . . . Time 102 | . 26 . . . . . . 76 . . . . . Parts Recycled . | . . . . . . . . . . . . . . Recycled Matter . | . . . . . . . . . . . . . . Retrieved Matter . | . . . . . . . . . . . . . . Retrieved Components 11 | . . . . . 9 . . . . . . . 2 Parts Scanalyzed 4 | . . . . . . . 3 . . . . . 1 Part Schematics Acquired 3 | . . . . . . . 2 . . . . . 1 Parts Damaged . | . . . . . . . . . . . . . . Bothacking | -11 -10 -10 -10 -9 -8 -8 -7 -6 -6 -6 -6 -5 -5 ------------ Run | Jun Mat Min Exi Min Mat Gar Fac Fac Low Low Zio Pro Fac Used RIF Installer 1 | . . . . . . 1 . . . . . . . Robots Hacked 3 | . . . . . . . 3 . . . . . . Non-combat . | . . . . . . . . . . . . . . Combat 3 | . . . . . . . 3 . . . . . . Robot Hacks Applied 3 | . . . . . . . 3 . . . . . . disrupt_area 1 | . . . . . . . 1 . . . . . . streamctrl_high 2 | . . . . . . . 2 . . . . . . Relay Couplers Released 10 | . . . . . . 7 3 . . . . . . Machine Destruction 7 | . . . . . . 7 . . . . . . . Programmers 3 | . . . . . . . 3 . . . . . . Attached 1 | . . . . . . . 1 . . . . . . Fabnet Peak Effective % . | . . . . . . . . . . . . . . Robots Rewired . | . . . . . . . . . . . . . . Allies Hacked . | . . . . . . . . . . . . . . Hacks Repelled . | . . . . . . . . . . . . . . Allies | -11 -10 -10 -10 -9 -8 -8 -7 -6 -6 -6 -6 -5 -5 -------- Run | Jun Mat Min Exi Min Mat Gar Fac Fac Low Low Zio Pro Fac Total Allies 4 | . . . . 2 . . 2 . . . . . . Largest Group 2 | . . . . 2 2 . 2 . . . . . . Highest-Rated Group 43 | . . . . 43 43 . 32 . . . . . . Highest-Rated Ally 31 | . . . . 31 31 . 16 . . . . . . Total Orders . | . . . . . . . . . . . . . . Ally Attacks 30 | . . . . . 22 . 8 . . . . . . Total Damage 429 | . . . . . 315 . 114 . . . . . . Kills 4 | . . . . . 3 . 1 . . . . . . Allies Corrupted . | . . . . . . . . . . . . . . Allies Melted . | . . . . . . . . . . . . . . Intel | -11 -10 -10 -10 -9 -8 -8 -7 -6 -6 -6 -6 -5 -5 ------- Run | Jun Mat Min Exi Min Mat Gar Fac Fac Low Low Zio Pro Fac Robot Analysis Total . | . . . . . . . . . . . . . . Derelict Logs Recovered 4 | . . 1 . . . . . . 1 1 . 1 . Drone Launches . | . . . . . . . . . . . . . . Drone Recoveries . | . . . . . . . . . . . . . . Exploration | -11 -10 -10 -10 -9 -8 -8 -7 -6 -6 -6 -6 -5 -5 ------------- Run | Jun Mat Min Exi Min Mat Gar Fac Fac Low Low Zio Pro Fac Turns Passed 19524 | 5 1497 618 1041 360 2541 1930 3938 1385 1388 1150 311 381 2979 Spaces Moved 7955 | 5 853 304 517 181 842 671 1837 424 537 445 121 150 1068 Core 4 | . . . . . . . . . . . . . 4 Treads 3622 | . . . . . 614 671 188 424 537 445 121 150 472 Legs 487 | 5 482 . . . . . . . . . . . . Wheels 3842 | . 371 304 517 181 228 . 1649 . . . . . 592 Hover . | . . . . . . . . . . . . . . Flight . | . . . . . . . . . . . . . . Fastest Speed 115 | 120 120 200 200 200 200 240 115 250 250 250 250 250 120 Average Speed 214 | 120 155 200 200 200 247 241 179 250 250 250 250 250 239 Slowest Speed 1850 | 120 400 200 200 200 480 320 560 250 250 250 250 250 1850 Overloaded Moves . | . . . . . . . . . . . . . . Propulsion Burnouts . | . . . . . . . . . . . . . . Robots Hopped . | . . . . . . . . . . . . . . Cave-ins Triggered 3 | . . . . . . . 3 . . . . . . Exploration Rate (%) 42 | 1 68 42 91 37 44 62 41 6 64 65 11 32 25 Regions Visited 13 Branch Regions 7 Pre-discovered Areas 2 | . . 1 1 . . . . . . . . . . Known Exits Taken 2 | . . . . . 1 . 1 . . . . . . Unknown Exits Taken 10 | 1 1 1 1 1 . . . 1 1 1 1 1 . Scrap Searched 5 | . . . . 1 . . . . 2 2 . . . Spaces Dug 98 | . . . . . . . 65 9 . . . . 24 Terrain Destroyed 458 | . . . . . 5 50 139 12 1 98 . 1 152 Melee 1 | . . . . . . . . . . . . . 1 Projectile 130 | . . . . . 5 1 71 12 1 3 . 1 36 AOE 327 | . . . . . . 49 68 . . 95 . . 115 Terrain Rammed . | . . . . . . . . . . . . . . Walls Destroyed . | . . . . . . . . . . . . . . Machines Disabled . | . . . . . . . . . . . . . . Actions | -11 -10 -10 -10 -9 -8 -8 -7 -6 -6 -6 -6 -5 -5 --------- Run | Jun Mat Min Exi Min Mat Gar Fac Fac Low Low Zio Pro Fac Total 9591 | 4 958 316 528 180 1129 870 2267 677 562 465 134 152 1349 Wait 752 | . 37 5 . . 122 59 202 186 7 . . . 134 Move 7939 | 4 852 303 516 180 841 669 1834 423 536 444 120 149 1068 Hop . | . . . . . . . . . . . . . . Pick Up 141 | . 21 5 5 . 27 23 30 6 1 2 5 . 16 Fast Attach 14 | . 2 . . . 1 1 5 3 . . . . 2 Attach 64 | . . . . . 13 5 13 3 2 1 3 . 24 Detach 1 | . . . . . . . 1 . . . . . . Swap 62 | . 3 . . . 9 20 16 4 1 5 . . 4 Drop 100 | . 5 3 7 . 19 17 30 5 1 . 6 . 7 Fire 492 | . 35 . . . 94 65 128 47 14 13 . 3 93 Melee 10 | . . . . . . 3 6 . . . . . 1 Ram . | . . . . . . . . . . . . . . Kick . | . . . . . . . . . . . . . . Crush 1 | . . . . . 1 . . . . . . . . Escape Stasis 6 | . . . . . . 4 2 . . . . . . Rewire 4 | . 3 . . . . 1 . . . . . . . Trap 5 | . . . . . 2 3 . . . . . . . Miscellaneous . | . . . . . . . . . . . . . . Route ------- -11/Junkyard -10/Materials (discovered 3 exits: [*Mat x2] / [*Min]) -10/Mines -10/Exiles (discovered 2 exits: [*Min x2]) -9/Mines -8/Materials (discovered 3 exits: *Sto x2 / Gar) -8/Garrison (discovered 2 exits: *Fac x2) -7/Factory (discovered 5 exits: *Fac x4 / [*Low]) -6/Factory (discovered 2 exits: *Fac / [*Low]) -6/Lower Caves -6/Lower Caves -6/Zion -5/Proximity Caves -5/Factory (discovered 4 exits: Fac x4) History --------- Turn | Location | Event 1 | -11/Junkyard | Discovered new exit (range 3) 6 | -11/Junkyard | Entered Materials 161 | -10/Materials | Discovered new exit (range 16) 309 | -10/Materials | Build established: Mutant 386 | -10/Materials | Discovered new exit (range 13) 722 | -10/Materials | Discovered new exit (range 7) 1223 | -10/Materials | Repaired Hcp. Battery 1503 | -10/Materials | Entered Mines 1624 | -10/Mines | Learned Materials non-interactive machine intel 1836 | -10/Mines | Found a hidden stash of uninstalled traps 2078 | -10/Mines | Learned location of Storage (-8) 2107 | -10/Mines | Deemed a non-threat by the Exiles lab entrance 2109 | -10/Mines | Discovered new exit (range 5) 2121 | -10/Mines | Entered Exiles 2181 | -10/Exiles | Discovered new exit (range 15) 2208 | -10/Exiles | Met 8R-AWN 2246 | -10/Exiles | Met EX-HEX 2328 | -10/Exiles | Met EX-BIN 2362 | -10/Exiles | Aligned with FarCom system 2364 | -10/Exiles | Given EX-Vault access code 2457 | -10/Exiles | Opened EX-Vault 2479 | -10/Exiles | Found Chronowheel 2483 | -10/Exiles | Found Superbattery 2528 | -10/Exiles | Warned to stay clear of 0b10 Research branches 2660 | -10/Exiles | Met EX-DEC 2712 | -10/Exiles | Learned location of Zion (-6) 2809 | -10/Exiles | Visited The Gauntlet 3124 | -10/Exiles | Discovered new exit (range 14) 3162 | -10/Exiles | Left Exiles lab with Superbattery 3162 | -10/Exiles | Entered Mines 3462 | -9/Mines | Discovered new exit (range 15) 3522 | -9/Mines | Entered Materials 3522 | -8/Materials | Accompanied by 2 allies 3522 | -8/Materials | Evolved 4 slots: Propulsion x2, Utility x2 3523 | -8/Materials | Loaded intel: 28 non-interactive machine locations 3527 | -8/Materials | Led the pair of lost Derelicts to an unsafe place 3743 | -8/Materials | Identified exit to Storage 4374 | -8/Materials | Build established: Scavenger-Mutant 5226 | -8/Materials | Build established: Mutant 5675 | -8/Materials | Garrison activated, responded to threat 5785 | -8/Materials | Lost 5 parts (1p3n1u) 6061 | -8/Materials | Identified exit to Garrison 6063 | -8/Materials | Entered Garrison 6152 | -8/Garrison | Build established: Scavenger-Mutant 6194 | -8/Garrison | Triggered checkpoint 6240 | -8/Garrison | Installed Relay Interface Framework 6273 | -8/Garrison | Garrison Relay disabled 6356 | -8/Garrison | Triggered checkpoint 6405 | -8/Garrison | Triggered checkpoint 6444 | -8/Garrison | Triggered checkpoint 6506 | -8/Garrison | Destroyed 10 combat bots 6664 | -8/Garrison | Triggered checkpoint 7075 | -8/Garrison | Discovered new exit (range 10) 7653 | -8/Garrison | Triggered checkpoint 7700 | -8/Garrison | Garrison Relay disabled 7928 | -8/Garrison | Triggered checkpoint 7942 | -8/Garrison | Discovered new exit (range 15) 7993 | -8/Garrison | Entered Factory 7993 | -7/Factory | Evolved 2 slots: Utility x2 9693 | -7/Factory | Discovered new exit (range 14) 10068 | -7/Factory | Build established: Skirmisher 10636 | -7/Factory | Crushed by falling debris 10652 | -7/Factory | Crushed by falling debris 10661 | -7/Factory | Crushed by falling debris 10964 | -7/Factory | Identified exit to Factory 11286 | -7/Factory | Discovered new exit (range 6) 11931 | -7/Factory | Entered another Factory area 11931 | -6/Factory | Evolved 2 slots: Power x1, Utility x1 12458 | -6/Factory | Build established: Mutant 12986 | -6/Factory | Build established: Skirmisher 13121 | -6/Factory | Repaired Arm. Treads 13161 | -6/Factory | Repaired Arm. Treads 13211 | -6/Factory | Discovered new exit (range 8) 13264 | -6/Factory | Discovered new exit (range 9) 13316 | -6/Factory | Entered Lower Caves 13614 | -6/Lower Caves | Build established: Mutant 13949 | -6/Lower Caves | Learned location of 1 exit from Factory 14642 | -6/Lower Caves | Discovered new exit (range 13) 14704 | -6/Lower Caves | Entered another Lower Caves area 14787 | -6/Lower Caves | Learned Factory emergency access door positions 14994 | -6/Lower Caves | Destroyed 7 combat bots 15753 | -6/Lower Caves | Discovered new exit (range 13) 15854 | -6/Lower Caves | Entered Zion 15979 | -6/Zion | Found Prototype Device 15980 | -6/Zion | Identified Bomb Factory No. 2 16125 | -6/Zion | Discovered new exit (range 16) 16165 | -6/Zion | Entered Proximity Caves 16167 | -5/Proximity Caves | Spotter reported a threat 16463 | -5/Proximity Caves | Learned Factory trap positions 16513 | -5/Proximity Caves | Discovered new exit (range 10) 16546 | -5/Proximity Caves | Entered Factory 16546 | -5/Factory | Evolved 2 slots: Propulsion x2 16547 | -5/Factory | Identified exit to Factory 16548 | -5/Factory | Loaded intel: 69 trap records 16677 | -5/Factory | Fabricated Imp. Thermal Shield (x2) 16833 | -5/Factory | Build established: Skirmisher 17714 | -5/Factory | Cargo convoy interrupted 19056 | -5/Factory | Destroyed 9 combat bots 19058 | -5/Factory | Lost 18 parts (2p6n6u4w) 19249 | -5/Factory | Build established: Mutant 19500 | -5/Factory | Core integrity fell below 50% 19518 | -5/Factory | System corruption reached 10% 19519 | -5/Factory | Core integrity fell below 20% 19525 | -5/Factory | Destroyed by P-70 Sage with Tesla Rifle Last Messages --------------- 19504_ K-01 Serf collects debris. 19505_ Penetrated by Slug. 19505_ Com. Wheel destroyed. 19505_ Penetrated by Slug. 19505_ Mic. Fission Core destroyed. 19507_ K-01 Serf collects debris. 19508_ Penetrated by Slug. 19508_ Slug penetrates Assembly Bed. 19508_ Lgt. Ion Engine destroyed. 19512_ Penetrated by Slug. 19512_ K-01 Serf collects debris. 19514_ Penetrated by Slug. 19514_ Hvy. Ion Cannon destroyed. 19515_ Penetrated by Slug. 19516_ K-01 Serf collects debris. 19517_ System corrupted: Component data lost. 19517_ Plasma Cannon destroyed. 19518_ Penetrated by Slug. 19518_ Imp. Thermal Generator destroyed. 19518_ Penetrated by Slug. Map ----- +----------------------------------------------------+ | ?????????????????????????????????????????????????? | | ?????????????????????????????????????????????????? | | ?????????????????????????????????????????????????? | | ?????????????????????????????????????????????????? | | ??+??????????????????????????????????????????????? | | ?????????????????????????????????????????????????? | | ?????????????????????????????????????????????????? | | ?????????????????????????????????????????????+???? | | ?????????????????????????????????????????????????? | | ?????????????????w???????????????????????????????? | | ?????????????????????????????????????????????+???? | | ??????????????h??????????????????????????????????? | | ?????????????????????????????????????????????????? | | ??????????????? ????????????????????????????????? | | ????????????? ???????????????????????????????? | | ????????????# ###+####???????????????????????? | | ????????????# h #???????????????????????? | | ????????????# ]#???????????????????????? | | ????????????# "" #???????????????????????? | | ????????????# #???????????????????????? | | ????????????# #???????????????????????? | | ????????????# #???????????????????????? | | ????????????# k #???????????????????????? | | ????????????# #???????????????????????? | | ????????????# ##??????????????????????? | | ????????????# @#??????????????????????? | | ????????????# gg """" p# ???????????????????? | | ???????????????? """" p# """ """?+w??????????? | | ???????????????g """" #? """ """?????????????? | | ????????????# """" #? """ """?????????????? | | ????????????# """" #?? ????????????????? | | ????????????+ """" %#?? """ ???????????????? | | ????????????# +???""" ???????????????? | | ????????????# """" #???""" ? "?????????????? | | ????????????# """" #???? ???"""????????????? | | ????????????# """" #???"""???S"????????????? | | ????????????# """" #??? """????????????? | | ????????????# """" #? ""????????????? | | ????????????# """ #! ?????????????? | | ????????????# ## #?????????????? | | ????##?????## ## % #?????????????? | | ???# ?? ######+ #?????????????? | | ???# #???#### #### %# ####??????????? | | ???# #??????# ????# # % + ???^???????? | | ???# #?###### ?????# # # #???????????? | | ???# ########+#+#### + # #?########### | | ???# ## # # # #?# | | ???# ## # # # ### | | ???# ## # # % !/ + | | #### ## # # %# # | +----------------------------------------------------+ Best States ------------- Heat Dissipation 64 Energy Generation 31 Energy Capacity 510 Matter Stores 300 Matter Capacity 300 Sight Range 16 Terrain Scan Density 10 Armor Coverage 375 Resistance: KI 20 Resistance: TH 25 Utility Shielding 66 Weapon Cycling 15 Phase Shifting 5 Evasion (%) 55 Targeting Accuracy 10 Target Analysis 6 Armor Integrity Analysis 30 Recoil Reduction 6 Energy Filtering 30 Relay Coupler Types 1 Relay Coupler Value 23 Item Schematics ----------------- Arm. Huge Wheel | -7/Factory | Scanalyzed Arm. Treads | -7/Factory | Scanalyzed Imp. Thermal Shield | -5/Factory | Scanalyzed Robot Schematics ------------------ None Fabricated ------------ Imp. Thermal Shield | x2 | -5/Factory | Preloaded Alien Tech Used ----------------- None Achievements -------------- None Challenges ------------ None Game ------ Seed GammaImpactScrap Manual? 0 Play Time 03:09:15 Cumulative 113.0 hours Start 2023.03.05 @ 22:54:48 End 2023.03.06 @ 02:14:18 Sessions 1 Manual Loads 0 Difficulty Rogue Special Mode None Game No. 85 Rogue 85 Adventurer 0 Explorer 0 Win Type - Total 0 Types 0/0/0/0/0/0/0/0/0 Lore% 49 Gallery% 61 Achievement% 40 Wizard Run 0 Options --------- ASCII 0 Keyboard 0 Movement Arrows Keybinds 1 Fullscreen 0 Font 16/Terminus Map View 76x50 Tactical HUD 1 Map Filters NONE Filters NONE Steam 1 RUN: f86d123b-9848-473a-9482-5ebf5ecefff4